Cogmind - Beta 13 @@@ ROGUE MODE // 2024.06.15 @ 03:42:29 Player: wojo Result: Destroyed by as-89442 with Assembled Heavy Rifle Performance ------------- Evolutions (0) 0 Regions Visited (2) 400 Robots Destroyed (18) 90 Value Destroyed (375) 375 Prototype IDs (0) 0 Alien Tech Used (0) 0 Bonus (-141) -141 TOTAL SCORE: 724 Bonus ------- Friendly Fire -141 Cogmind --------- Core Integrity 0/250 Matter 47/300 Energy 100/100 System Corruption 0% Temperature Cool (0) Movement Walking (120) Location -10/Mines Parts ------- > --- POWER (1) -------- (None) > --- PROPULSION (2) --- Flexi-carbon Leg Improved Hover Unit > --- UTILITY (2) ------ Hardened Light Armor Plating > --- WEAPON (2) ------- (None) > --- INVENTORY (5) ---- Improved Heat Sink Small Storage Unit Hardened Light Armor Plating Hardened Light Armor Plating Peak State ------------ > --- POWER ------------ Light Angular Momentum Engine > --- PROPULSION ------- Improved Hover Unit Improved Hover Unit > --- UTILITY ---------- Small Storage Unit Improved Terrain Scanner > --- WEAPON ----------- Assault Rifle Grenade Launcher > --- INVENTORY -------- Improved Heat Sink Hardened Light Armor Plating Hardened Light Armor Plating Hardened Light Armor Plating Assault Rifle [Rating: 16] Favorites ----------- Power Light Ion Engine Engine Light Ion Engine Power Core Fission Core Propulsion Light Treads Treads Light Treads Leg Flexi-carbon Leg Hover Unit Improved Hover Unit Utility Small Storage Unit Device Improved Terrain Scanner Storage Small Storage Unit Protection Hardened Light Armor Plating Weapon Assault Rifle Ballistic Gun Assault Rifle Launcher Grenade Launcher Build | -11 -10 -10 ------- Run | Yrd Mat Min Slots Evolved . | . . . Power . | . . . Propulsion . | . . . Utility . | . . . Weapon . | . . . Parts Attached 23 | 7 4 12 Power 4 | 1 1 2 Engine 3 | 1 1 1 Core 1 | . . 1 Reactor . | . . . Propulsion 7 | 2 2 3 Treads 2 | 2 . . Leg 1 | . . 1 Wheel . | . . . Hover 4 | . 2 2 Flight . | . . . Utility 3 | 2 . 1 Device 1 | 1 . . Storage 1 | 1 . . Processor . | . . . Hackware . | . . . Protection 1 | . . 1 Artifact . | . . . Weapon 9 | 2 1 6 Energy Gun . | . . . Energy Cannon . | . . . Ballistic Gun 5 | 2 . 3 Ballistic Cannon . | . . . Launcher 4 | . 1 3 Special Weapon . | . . . Impact Weapon . | . . . Slashing Weapon . | . . . Piercing Weapon . | . . . Special Melee Weapon . | . . . Unidentified Prototypes . | . . . Parts Lost 12 | . 1 11 Power 4 | . 1 3 Propulsion 3 | . . 3 Utility 1 | . . 1 Weapon 4 | . . 4 Highest Loss Streak 6 | . 1 6 To Critical Strikes 1 | . . 1 Average Slot Usage (%) 96 | . 99 80 Engine 12 | . 13 5 Treads 16 | . 20 . Hover 10 | . 7 24 Device 13 | . 14 11 Storage 13 | . 14 12 Ballistic Gun 21 | . 23 10 Launcher 5 | . 4 12 Naked Turns . | . . . Heaviest Build 21 | 14 14 21 Greatest Support 40 | 40 40 14 Greatest Overweight (x) 4 | . 4 2 Average Overweight (x) . | . . . Largest Inventory Capacity 8 | 8 8 8 Average Capacity 7 | 7 8 7 Most Carried 8 | 2 8 8 Average Carried 4 | . 5 6 Final Capacity 8 | 8 8 5 Final Carried 8 | 1 8 4 Class Distribution -------------------- 100% | Mutant Dominant Class ---------------- Mutant | -10/Materials Mutant | -10/Mines Resources | -11 -10 -10 ----------- Run | Yrd Mat Min Matter Collected 544 | 219 277 48 Remotely . | . . . Salvage Created 648 | 128 380 140 Parts 31 | 6 23 2 Haulers Intercepted 1 | . 1 . Recyclers Shooed 1 | 1 . . Parts Field Recycled . | . . . Retrieved Matter . | . . . Parts Self-Destructed . | . . . Prevented . | . . . Kills | -11 -10 -10 ------- Run | Yrd Mat Min Combat Hostiles Destroyed 25 | . 9 16 Guns 7 | . 5 2 AOE 18 | . 4 14 Classes Destroyed 10 | 2 6 2 Builder 1 | . 1 . Tunneler 2 | 2 . . Hauler 1 | . 1 . Recycler 1 | 1 . . Operator 2 | . 2 . Watcher 1 | . 1 . Swarmer 3 | . 3 . Grunt 6 | . 6 . Assembled 16 | . . 16 Guerrilla 1 | . . 1 Best Kill Streak 16 | 3 3 16 Combat Bots Only 16 | . 3 16 Max Kills in Single Turn 5 | 1 2 5 Gunslinging . | . . . Exploded 4 | . 2 4 Melee . | . . . Uniques/NPCs Destroyed . | . . . Combat | -11 -10 -10 -------- Run | Yrd Mat Min Hostile Shots Fired 113 | . 47 66 Missed 30 | . 10 20 Damage Taken 1236 | . 530 706 Core 252 | . 129 123 Absorbed by Shields . | . . . Core Remaining (%) 100 | 100 . . Volleys Fired 80 | 12 54 14 Largest 2 | 2 2 2 Hottest 60 | 40 50 60 Shots Fired 151 | 24 103 24 Gun 132 | 24 93 15 Cannon . | . . . Launcher 19 | . 10 9 Special . | . . . Kinetic 132 | 24 93 15 Thermal . | . . . Explosive 19 | . 10 9 Electromagnetic . | . . . Robot Hit Streak 11 | 11 10 10 Robot Miss Streak 4 | 3 3 4 Penetration Max . | . . . Secondary Targets 1 | . . 1 Max Gunslinging Chain 1 | . . 1 Shots Hit Robots 98 | 15 71 12 Core Hits 67 | 5 28 34 Critical Kills . | . . . Critical Parts Destroyed . | . . . Critical Strikes . | . . . Melee Attacks . | . . . Impact . | . . . Slashing . | . . . Piercing . | . . . Sneak Attacks . | . . . Combat Hostiles . | . . . Follow-up Attacks . | . . . Damage Inflicted 2012 | 174 919 919 Guns 981 | 174 712 95 Cannons . | . . . Explosions 981 | . 194 787 Melee . | . . . Ramming 50 | . 13 37 Kinetic 981 | 174 712 95 Thermal . | . . . Explosive 981 | . 194 787 Electromagnetic . | . . . Impact . | . . . Slashing . | . . . Piercing . | . . . Highest Corruption . | . . . Average Corruption . | . . . Corruption Purged . | . . . Corruption Blocked . | . . . Overload Shots . | . . . Overflow Damage 3 | . . 3 Projectiles . | . . . Explosions 3 | . . 3 Melee . | . . . Knockbacks . | . . . Impact . | . . . Kinetic . | . . . Secondary . | . . . Self-Inflicted Damage 135 | . 86 49 Shots 6 | . 4 2 Rammed 9 | . 3 6 Targets Rammed 15 | . 4 11 Kicked 5 | . . 5 Crushed 1 | . 1 . Highest Temperature 18 | . 18 9 Average Temperature 7 | . 7 4 Received Heat Transfer 272 | . 252 20 Siege Activations . | . . . Robots Corrupted . | . . . Combat Hostiles . | . . . Parts Fried . | . . . Impact Corruptions . | . . . Robots Melted . | . . . Combat Hostiles . | . . . Parts Melted . | . . . Heat Transferred . | . . . Parts Sabotaged . | . . . Parts Stolen . | . . . Parts Stripped . | . . . Power Chain Reactions . | . . . Alert | -11 -10 -10 ------- Run | Yrd Mat Min Peak Influence 383 | 15 383 169 Initial 148 | . 9 148 Average 87 | 4 95 112 Maximum Alert Level 1 | . 1 . Low Security (%) 87 | 100 83 100 Level 1 12 | . 16 . Level 2 . | . . . Level 3 . | . . . Level 4 . | . . . Level 5 . | . . . High Security . | . . . Max Security . | . . . Squads Dispatched 1 | . 1 . Investigation . | . . . Extermination . | . . . Reinforcement 1 | . 1 . Assault . | . . . Garrison . | . . . Intercept . | . . . Searches Triggered . | . . . Construction Impeded . | . . . Haulers Reinforced . | . . . Active Scanning Responses . | . . . Cargo Convoy Interrupts . | . . . Stealth | -11 -10 -10 --------- Run | Yrd Mat Min Distress Signals . | . . . Communications Jammed . | . . . Distress Signals . | . . . Times Spotted 37 | . 18 19 Peak Tracking Total 13 | . 3 13 Tactical Retreats . | . . . Traps | -11 -10 -10 ------- Run | Yrd Mat Min Traps Triggered . | . . . Indirectly . | . . . Trap Hack Attempts . | . . . Triggered . | . . . Disarmed . | . . . Reprogrammed . | . . . Reused . | . . . Traps Extracted . | . . . Installed . | . . . Triggered 1 | . . 1 Machines | -11 -10 -10 ---------- Run | Yrd Mat Min Machines Disabled 4 | . 4 . Max in Single Turn 2 | . 2 . Machines Repaired . | . . . Machines Dismantled . | . . . Machines Sabotaged . | . . . Overloaded Fab Kills . | . . . Hacking | -11 -10 -10 --------- Run | Yrd Mat Min Machines Accessed 6 | . 6 . Terminals 5 | . 5 . Fabricators . | . . . Repair Stations . | . . . Recycling Units 1 | . 1 . Scanalyzers . | . . . Garrison Access . | . . . Total Hacks 9 | . 9 . Successful 6 | . 6 . Failed 3 | . 3 . Catastrophic . | . . . Database Lockouts . | . . . Manual . | . . . Terminals 8 | . 8 . Fabricators . | . . . Repair Stations . | . . . Recycling Units 1 | . 1 . Scanalyzers . | . . . Garrison Access . | . . . Terminal Hacks 5 | . 5 . Branch Access Points 1 | . 1 . Emergency Access Points 1 | . 1 . Locate Traps 2 | . 2 . Transport Status 1 | . 1 . Fabricator Hacks . | . . . Repair Station Hacks . | . . . Recycling Unit Hacks 1 | . 1 . Report Inventory 1 | . 1 . Scanalyzer . | . . . Garrison Access Hacks . | . . . Unauthorized Hacks . | . . . Terminals . | . . . Fabricators . | . . . Repair Stations . | . . . Recycling Units . | . . . Scanalyzers . | . . . Garrison Access . | . . . Data Cores Recovered 1 | . 1 . Used . | . . . Hacking Detections 4 | . 4 . Full Trace Events 1 | . 1 . Feedback Events . | . . . Feedback Blocked . | . . . Robot Schematics Acquired . | . . . Robots Built . | . . . Authchips . | . . . Time . | . . . Total Robot Build Rating . | . . . Part Schematics Acquired . | . . . Parts Built . | . . . Authchips . | . . . Time . | . . . Total Part Build Rating . | . . . Parts Repaired . | . . . Time . | . . . Parts Recycled . | . . . Recycled Matter . | . . . Retrieved Matter . | . . . Retrieved Components . | . . . Parts Scanalyzed . | . . . Part Schematics Acquired . | . . . Parts Damaged . | . . . Bothacking | -11 -10 -10 ------------ Run | Yrd Mat Min Used RIF Installer . | . . . Robots Hacked . | . . . Non-combat . | . . . Combat . | . . . Robot Hacks Applied . | . . . Relay Couplers Released . | . . . Fabnet Peak Effective % . | . . . Robots Rewired . | . . . Allies Hacked . | . . . Hacks Repelled . | . . . Allies | -11 -10 -10 -------- Run | Yrd Mat Min Total Allies 2 | . . 2 Largest Group 2 | . . 2 Highest-Rated Group 42 | . . 42 Highest-Rated Ally 31 | . . 31 Total Orders . | . . . Ally Attacks 7 | . . 7 Total Damage 82 | . . 82 Kills 1 | . . 1 Allies Corrupted . | . . . Allies Melted 1 | . . 1 Intel | -11 -10 -10 ------- Run | Yrd Mat Min Robot Analysis Total . | . . . Derelict Logs Recovered . | . . . Drone Launches . | . . . Drone Recoveries . | . . . Exploration | -11 -10 -10 ------------- Run | Yrd Mat Min Turns Passed 1064 | 122 787 155 Spaces Moved 712 | 54 534 124 Core 16 | 9 5 2 Treads 291 | 45 246 . Legs . | . . . Wheels . | . . . Hover 405 | . 283 122 Flight . | . . . Fastest Speed 50 | 50 56 56 Average Speed 102 | 141 105 71 Slowest Speed 250 | 160 250 180 Overloaded Moves . | . . . Propulsion Burnouts . | . . . Robots Hopped . | . . . Cave-ins Triggered . | . . . Exploration Rate (%) 39 | 5 89 23 Regions Visited 2 Branch Regions 1 Pre-discovered Areas . | . . . Known Exits Taken 1 | . 1 . Unknown Exits Taken 1 | 1 . . Scrap Searched . | . . . Spaces Dug . | . . . Terrain Destroyed 165 | . 110 55 Melee . | . . . Projectile . | . . . AOE 165 | . 110 55 Terrain Rammed . | . . . Walls Destroyed . | . . . Machines Disabled . | . . . Actions | -11 -10 -10 --------- Run | Yrd Mat Min Total 898 | 76 659 163 Wait 50 | . 50 . Move 710 | 53 533 124 Hop . | . . . Pick Up 15 | 4 10 1 Fast Attach 8 | 4 2 2 Attach 10 | 3 1 6 Detach 1 | . . 1 Swap 5 | . 1 4 Drop 4 | . 4 . Fire 80 | 12 54 14 Melee . | . . . Ram 6 | . . 6 Kick 5 | . . 5 Crush 4 | . 4 . Escape Stasis . | . . . Rewire . | . . . Trap . | . . . Miscellaneous . | . . . Route ------- -11/Scrapyard -10/Materials (discovered 5 exits: [*Mat x3] / *Min x2) -10/Mines History --------- Turn | Location | Event 6 | -11/Scrapyard | Discovered new exit (range 15) 123 | -11/Scrapyard | Entered Materials 301 | -10/Materials | Build established: Mutant 517 | -10/Materials | Discovered new exit (range 9) 654 | -10/Materials | Discovered new exit (range 11) 747 | -10/Materials | Identified exit to Mines 780 | -10/Materials | Discovered new exit (range 9) 858 | -10/Materials | Core integrity fell below 50% 910 | -10/Materials | Entered Mines 936 | -10/Mines | Assembled infested the area 941 | -10/Mines | Assisted by a Guerilla fighting off Assembled 999 | -10/Mines | Lost 3 allies 1014 | -10/Mines | Lost 5 parts (2p2n1w) 1017 | -10/Mines | Destroyed 16 combat bots 1019 | -10/Mines | Core integrity fell below 20% 1065 | -10/Mines | Destroyed by as-89442 with Assembled Heavy Rifle Last Messages --------------- 00999_ Acquired 8 matter. 00999_ Acquired 11 matter. 01001_ Acquired Flexi-carbon Leg. 01002_ Acquired 3 matter. 01003_ Acquired Fission Core. 01006_ Acquired 10 matter. 01014_ Critical hit (Destroy). 01014_ Fission Core destroyed. 01022_ Assault Rifle destroyed. 01031_ Slammed into as-89442. 01033_ Imp. Terrain Scanner destroyed. 01037_ Assault Rifle destroyed. 01041_ Grenade Launcher destroyed. 01054_ Slammed into as-89442. 01054_ Destabilizing: Core damaged (-2). 01055_ Slammed into as-89442. 01055_ Imp. Hover Unit destroyed. 01056_ Slammed into as-89442. 01060_ Kicked as-89442. 01063_ Kicked as-89442 out of the way. Map ----- +----------------------------------------------------+ | | | | | | | | | | | | | | | | | | | | | | | | | ?????????????????????????????????????????????????? | | ?????????????????????????????????????????????????? | | ?????????????????????????????????###?????????????? | | ?????????????????????????????#### ##????????????? | | ????????????????????????????## #????????????? | | ???????????????????????????## #????????????? | | ???????????????????????????# #?????????????? | | ??????????????????????????## #??????????????? | | ???????????????????????#### ####??????????????? | | ??????????????????????## ##?????????????????? | | ?????????????????????## #??????????????????? | | ??????????#?????????## #??????????????????? | | ?????????????????#??# a #??????????????????? | | ?????????????#??????# @ #??????????????????? | | ????????????????????# ##??????????????????? | | ????????????????????## ##???????????????????? | | ?????????????????????# ###????????????????????? | | ?????????????#???#??## ##??????????????????????? | | ????????????????????# ##?#????????????????????? | | ???????###??? ??????# ##?????????????????????? | | ???????# ? ?#?????## ##????????????????????? | | ???????#$#?????????## #????????????????????? | | ??????## #?????##### #????????????????????? | | ???????# #?#???# ##???????????????????? | | ????#??# ##???## #????????????????????? | | ???????# #?????# # ##???????????????????? | | ???????# #??#?## ###### ### ????????????????? | | ???????# #????## ### ???????????????? | | ?????#?# ##????# # " ?????????????? | | ??????## #????# # ## *%??????????????? | | ???????## #?#?## # ## =??????????????? | | ???#????# #???# # #??? #???????????????? | | ????????# #???## #????????????????????? | | #?#?????# #??## ##?#?????????????????? | | ????##### ##### #???????????????????? | | ???## # #??????????????????? | | ??## # # #???????????????? | | ??# ####### ###?# ### #???????????????? | +----------------------------------------------------+ Best States ------------- Heat Dissipation 25 Energy Generation 18 Energy Capacity 310 Matter Stores 260 Matter Capacity 300 Sight Range 16 Terrain Scan Range 16 Terrain Scan Density 10 Armor Coverage 150 Evasion (%) 53 Recoil Reduction 2 Item Schematics ----------------- None Robot Schematics ------------------ None Fabricated ------------ Nothing Alien Tech Used ----------------- None Achievements -------------- None Challenges ------------ None Game ------ Seed LightpackAlertMatter Manual? 0 Play Time 00:15:36 Cumulative 33.7 hours Start 2024.06.15 @ 03:30:04 End 2024.06.15 @ 03:42:29 Sessions 1 Manual Loads 0 Difficulty Rogue Special Mode None Game No. 57 Rogue 57 Adventurer 0 Explorer 0 Win Type - Total 0 Types 0/0/0/0/0/0/0/0/0 Lore% 23 Gallery% 28 Achievement% 21 Wizard Run 0 Options --------- Layout 1 ASCII 0 Keyboard 0 Movement Arrows Keybinds 0 Fullscreen 1 Font 16/SmallcapsGlow Map View 50x40 Zoom Use 0% Tactical HUD 1 Map Filters NONE Filters NONE Steam SD RUN: 3f21e7a0-d279-43dc-951b-16fc6b1d4a46